fUSD/lending_fUSD_20260629
["ID","MTS","AMOUNT","RATE_DAILY","PERIOD"]
[426693622,1782748239000,-185.01091256,0.00025118,2]
[426693625,1782748239000,-185.03447973,0.00025118,2]
[426693627,1782748239000,-162.54264022,0.00025118,2]
[426693628,1782748239000,-210.6751153,0.00025118,2]
[426693633,1782748239000,-815.8,0.00025415,2]
[426693629,1782748239000,-189.9079351,0.00025118,2]
[426693626,1782748239000,-391.37155439,0.00025118,2]
[426693632,1782748239000,-150.0,0.00025373,2]
[426693631,1782748239000,-151.09934801,0.00025303,2]
[426693634,1782748239000,-166.66,0.00025496,2]
[426693630,1782748239000,-338.08203283,0.00025118,2]
[426693635,1782748239000,-204.0,0.0002552,2]
[426693637,1782748239000,-151.09934801,0.00025639,2]
[426693620,1782748239000,-310.39822864,0.00025118,2]
[426693612,1782748239000,-157.12624503,0.00025118,2]
[426693636,1782748239000,-194.73755084,0.00025631,2]
[426693600,1782748239000,-378.92691999,0.0002511,2]
[426693606,1782748239000,-303.04604196,0.00025112,2]
[426693577,1782748239000,-1510.23,0.00024174,2]
[426693578,1782748239000,-460.04,0.00024174,2]
[426693580,1782748239000,-623.01,0.00024398,2]
[426693581,1782748239000,-166.66,0.00024488,30]
[426693582,1782748239000,-177.33,0.00024658,2]
[426693583,1782748239000,-1000.0,0.00024658,2]
[426693585,1782748239000,-4044.99973307,0.00024733,7]
[426693584,1782748239000,-166.66,0.00024682,2]
[426693589,1782748239000,-160.0,0.00024733,7]
[426693592,1782748239000,-159.09,0.00024998,2]
[426693588,1782748239000,-160.0,0.00024733,7]
[426693591,1782748239000,-151.09934801,0.00024967,2]
[426693586,1782748239000,-5473.0269,0.00024733,7]
[426693594,1782748239000,-203.40283707,0.00025,2]
[426693590,1782748239000,-502.0,0.00024875,9]
[426693599,1782748239000,-170.03272621,0.00025107,2]
[426693610,1782748239000,-325.93910919,0.00025112,2]
[426693609,1782748239000,-209.43339595,0.00025112,2]
[426693602,1782748239000,-320.26716191,0.0002511,2]
[426693605,1782748239000,-315.97167595,0.00025112,2]
[426693597,1782748239000,-758.0894643,0.00025017,2]
[426693604,1782748239000,-342.02379135,0.0002511,2]
[426693596,1782748239000,-590.74623189,0.00025,2]
[426693593,1782748239000,-249.88279101,0.00025,2]
[426693598,1782748239000,-213.56000956,0.00025107,2]
[426693595,1782748239000,-619.83118614,0.00025,2]
[426693611,1782748239000,-168.5092886,0.00025118,2]
[426693675,1782748240000,-222.03500896,0.00025962,2]
[426693664,1782748240000,-418.86679189,0.00025955,2]
[426693668,1782748240000,-314.25249006,0.00025962,2]
[426693671,1782748240000,-541.37343372,0.00025962,2]
[426693669,1782748240000,-227.30674088,0.00025962,2]
[426693670,1782748240000,-455.51097809,0.00025962,2]
[426693672,1782748240000,-254.26271187,0.00025962,2]
[426693674,1782748240000,-155.01442013,0.00025962,2]
[426693676,1782748240000,-252.58258685,0.00025962,2]
[426693667,1782748240000,-337.01857719,0.00025962,2]
[426693682,1782748240000,-270.6416018,0.00025962,2]
[426693677,1782748240000,-562.17661039,0.00025962,2]
[426693680,1782748240000,-156.19253169,0.00025962,2]
[426693681,1782748240000,-455.52947586,0.00025962,2]
[426693679,1782748240000,-158.68630664,0.00025962,2]
[426693663,1782748240000,-502.91623222,0.00025955,2]
[426693683,1782748240000,-310.26452746,0.00025962,2]
[426693684,1782748240000,-209.17099653,0.00025962,2]
[426693685,1782748240000,-453.45644021,0.00025962,2]
[426693694,1782748240000,-266.23612951,0.00025962,2]
[426693696,1782748240000,-151.09934801,0.00025975,2]
[426693693,1782748240000,-379.81587021,0.00025962,2]
[426693695,1782748240000,-507.12304925,0.00025962,2]
[426693678,1782748240000,-219.14766197,0.00025962,2]
[426693665,1782748240000,-488.90866378,0.00025955,2]
[426693656,1782748240000,-235.64479893,0.00025953,2]
[426693673,1782748240000,-470.12201472,0.00025962,2]
[426693692,1782748240000,-421.3502306,0.00025962,2]
[426693638,1782748240000,-542.03955459,0.00025716,2]
[426693648,1782748240000,-202.49195897,0.00025951,2]
[426693645,1782748240000,-229.26820542,0.00025951,2]
[426693646,1782748240000,-340.06545241,0.00025951,2]
[426693642,1782748240000,-183.70029703,0.00025951,2]
[426693644,1782748240000,-427.12001912,0.00025951,2]
[426693640,1782748240000,-7574.93855739,0.00025721,2]
[426693647,1782748240000,-253.21947136,0.00025951,2]
[426693641,1782748240000,-502.0,0.00025859,10]
[426693643,1782748240000,-159.9602403,0.00025951,2]
[426693666,1782748240000,-291.4590324,0.00025962,2]
[426693639,1782748240000,-15850.9632588,0.00025721,2]
[426693661,1782748240000,-362.97517819,0.00025955,2]
[426693655,1782748240000,-513.03568703,0.00025953,2]
[426693657,1782748240000,-283.72859771,0.00025953,2]
[426693658,1782748240000,-473.95751392,0.00025955,2]
[426693652,1782748240000,-568.39037999,0.00025953,2]
[426693649,1782748240000,-220.74153862,0.00025951,2]
[426693653,1782748240000,-480.40074286,0.00025953,2]
[426693651,1782748240000,-287.27261223,0.00025951,2]
[426693659,1782748240000,-454.56906293,0.00025955,2]
[426693654,1782748240000,-454.6479978,0.00025953,2]
[426693662,1782748240000,-437.87173816,0.00025955,2]
[426693650,1782748240000,-249.93277666,0.00025951,2]
[426693660,1782748240000,-482.02393894,0.00025955,2]
[426693686,1782748240000,-465.59734296,0.00025962,2]
[426693688,1782748240000,-506.3494575,0.00025962,2]
[426693722,1782748240000,-230.18746251,0.00026515,2]
[426693721,1782748240000,-567.45719543,0.00026515,2]
[426693723,1782748240000,-200.06265244,0.00026515,2]
[426693724,1782748240000,-419.73813405,0.00026515,2]
[426693730,1782748240000,-631.94335189,0.00026517,2]
[426693731,1782748240000,-319.96830724,0.00026517,2]
[426693726,1782748240000,-167.48709581,0.00026515,2]
[426693728,1782748240000,-339.5826762,0.00026515,2]
[426693727,1782748240000,-287.75639426,0.00026515,2]
[426693729,1782748240000,-394.21462644,0.00026515,2]
[426693732,1782748240000,-606.09208391,0.00026517,2]
[426693741,1782748240000,-670.5549763,0.00026517,2]
[426693736,1782748240000,-544.46276729,0.00026517,2]
[426693734,1782748240000,-178.93603588,0.00026517,2]
[426693735,1782748240000,-208.93299555,0.00026517,2]
[426693739,1782748240000,-656.80760724,0.00026517,2]
[426693737,1782748240000,-284.04385911,0.00026517,2]
[426693738,1782748240000,-310.99386043,0.00026517,2]
[426693740,1782748240000,-174.19192964,0.00026517,2]
[426693742,1782748240000,-426.00662091,0.00026517,2]
[426693743,1782748240000,-628.30018784,0.00026517,2]
[426693744,1782748240000,-342.91394514,0.00026517,2]
[426693687,1782748240000,-267.16616894,0.00025962,2]
[426693725,1782748240000,-166.72601345,0.00026515,2]
[426693718,1782748240000,-438.13818679,0.00026515,2]
[426693733,1782748240000,-642.69858526,0.00026517,2]
[426693717,1782748240000,-171.48095675,0.00026515,2]
[426693690,1782748240000,-428.23693283,0.00025962,2]
[426693716,1782748240000,-684.04758271,0.00026515,2]
[426693689,1782748240000,-370.02182512,0.00025962,2]
[426693691,1782748240000,-370.06895946,0.00025962,2]
[426693697,1782748240000,-1359.68325,0.00026,2]
[426693699,1782748240000,-150.0,0.00026238,5]
[426693707,1782748240000,-458.53641085,0.00026513,2]
[426693708,1782748240000,-510.09817862,0.00026513,2]
[426693701,1782748240000,-166.66,0.00026311,2]
[426693703,1782748240000,-319.92048059,0.00026513,2]
[426693700,1782748240000,-151.09934801,0.00026311,2]
[426693702,1782748240000,-367.40059406,0.00026513,2]
[426693698,1782748240000,-280.9090909,0.00026099,2]
[426693706,1782748240000,-164.36863685,0.00026513,2]
[426693715,1782748240000,-606.19733041,0.00026515,2]
[426693712,1782748240000,-449.26801146,0.00026515,2]
[426693713,1782748240000,-757.85383998,0.00026515,2]
[426693711,1782748240000,-574.54522446,0.00026513,2]
[426693720,1782748240000,-269.69595104,0.00026515,2]
[426693714,1782748240000,-640.53432382,0.00026515,2]
[426693719,1782748240000,-471.28959787,0.00026515,2]
[426693710,1782748240000,-404.98391794,0.00026513,2]
[426693704,1782748240000,-323.84535204,0.00026513,2]
[426693705,1782748240000,-640.68002868,0.00026513,2]
[426693709,1782748240000,-506.43894271,0.00026513,2]
[426693785,1782748241000,-863.10124418,0.00026524,2]
[426693782,1782748241000,-555.03273768,0.00026524,2]
[426693787,1782748241000,-740.60220411,0.00026524,2]
[426693783,1782748241000,-642.35539925,0.00026524,2]
[426693780,1782748241000,-675.13261,0.00026524,2]
[426693790,1782748241000,-444.07001792,0.00026524,2]
[426693777,1782748241000,-202.1636313,0.00026524,2]
[426693781,1782748241000,-640.77165015,0.00026524,2]
[426693775,1782748241000,-620.79645728,0.00026524,2]
[426693774,1782748241000,-270.68337984,0.00026524,2]
[426693778,1782748241000,-534.33233788,0.00026524,2]
[426693779,1782748241000,-229.80872473,0.00026524,2]
[426693784,1782748241000,-418.34199306,0.00026524,2]
[426693798,1782748241000,-789.92918986,0.00027079,2]
[426693788,1782748241000,-532.47225902,0.00026524,2]
[426693786,1782748241000,-487.62792066,0.00026524,2]
[426693792,1782748241000,-151.09934801,0.00026647,2]
[426693802,1782748241000,-814.84777297,0.00027079,2]
[426693793,1782748241000,-502.0,0.00026844,11]
[426693791,1782748241000,-150.0,0.00026641,2]
[426693795,1782748241000,-947.31729998,0.00027077,2]
[426693796,1782748241000,-800.66790477,0.00027077,2]
[426693797,1782748241000,-757.74666301,0.00027077,2]
[426693794,1782748241000,-151.09934801,0.00026983,2]
[426693799,1782748241000,-757.61510489,0.00027079,2]
[426693776,1782748241000,-208.036199,0.00026524,2]
[426693789,1782748241000,-676.16406566,0.00026524,2]
[426693773,1782748241000,-604.60858694,0.00026524,2]
[426693746,1782748241000,-427.04298387,0.00026517,2]
[426693771,1782748241000,-465.39679118,0.00026524,2]
[426693801,1782748241000,-838.19372037,0.00027079,2]
[426693745,1782748241000,-651.87821838,0.00026517,2]
[426693755,1782748241000,-626.82935296,0.00026524,2]
[426693747,1782748241000,-582.9180648,0.00026524,2]
[426693751,1782748241000,-607.34797078,0.00026524,2]
[426693752,1782748241000,-721.83124496,0.00026524,2]
[426693754,1782748241000,-185.53824093,0.00026524,2]
[426693749,1782748241000,-471.37873508,0.00026524,2]
[426693748,1782748241000,-505.52786579,0.00026524,2]
[426693750,1782748241000,-454.61348176,0.00026524,2]
[426693753,1782748241000,-508.52542373,0.00026524,2]
[426693756,1782748241000,-346.87701195,0.00026524,2]
[426693770,1782748241000,-541.28320359,0.00026524,2]
[426693758,1782748241000,-310.02884026,0.00026524,2]
[426693762,1782748241000,-302.41819783,0.00026524,2]
[426693759,1782748241000,-206.40305492,0.00026524,2]
[426693757,1782748241000,-353.66898749,0.00026524,2]
[426693765,1782748241000,-317.37261329,0.00026524,2]
[426693761,1782748241000,-281.08830519,0.00026524,2]
[426693767,1782748241000,-225.96549144,0.00026524,2]
[426693763,1782748241000,-438.29532393,0.00026524,2]
[426693766,1782748241000,-312.38506338,0.00026524,2]
[426693764,1782748241000,-259.96433623,0.00026524,2]
[426693772,1782748241000,-610.98400222,0.00026524,2]
[426693769,1782748241000,-607.37263448,0.00026524,2]
[426693768,1782748241000,-230.79071999,0.00026524,2]
[426693760,1782748241000,-505.1651737,0.00026524,2]
[426693800,1782748241000,-803.37323157,0.00027079,2]
[426693841,1782748241000,-14283.3241478,0.00027476,2]
[426693804,1782748241000,-830.12342566,0.00027086,2]
[426693830,1782748241000,-170.46881067,0.00027397,2]
[426693838,1782748241000,-1859.14,0.000274,7]
[426693836,1782748241000,-514.59402153,0.00027397,2]
[426693840,1782748241000,-308.55755212,0.00027466,2]
[426693850,1782748241000,-233.12,0.0002758,7]
[426693839,1782748241000,-161.19607867,0.000274,2]
[426693842,1782748241000,-500.0,0.000275,7]
[426693855,1782748241000,-235.17,0.00027641,2]
[426693844,1782748241000,-591.84,0.0002755,30]
[426693847,1782748241000,-591.74,0.0002755,30]
[426693843,1782748241000,-233.12,0.0002755,2]
[426693848,1782748241000,-353.09,0.0002755,30]
[426693837,1782748241000,-1580.07,0.000274,7]
[426693846,1782748241000,-999.85,0.0002755,30]
[426693849,1782748241000,-235.17,0.0002755,2]
[426693852,1782748241000,-233.12,0.00027611,30]
[426693862,1782748241000,-591.84,0.00027711,7]
[426693853,1782748241000,-235.17,0.00027611,30]
[426693858,1782748241000,-235.17,0.00027672,7]
[426693854,1782748241000,-233.12,0.00027641,2]
[426693856,1782748241000,-151.09934801,0.00027655,2]
[426693861,1782748241000,-235.17,0.00027702,30]
[426693857,1782748241000,-233.12,0.00027672,7]
[426693860,1782748241000,-233.12,0.00027702,30]
[426693851,1782748241000,-235.17,0.0002758,7]
[426693813,1782748241000,-179.71008064,0.00027397,10]
[426693845,1782748241000,-999.08,0.0002755,30]
[426693835,1782748241000,-343.06268102,0.00027397,2]
[426693859,1782748241000,-1700.0,0.000277,10]
[426693829,1782748241000,-311.8727815,0.00027397,2]
[426693812,1782748241000,-179.71008064,0.00027397,10]
[426693803,1782748241000,-759.2157931,0.00027086,2]
[426693805,1782748241000,-755.76073368,0.00027086,2]
[426693807,1782748241000,-166.66,0.00027126,2]
[426693810,1782748241000,-175.0,0.00027287,5]
[426693808,1782748241000,-264.08052041,0.0002723,2]
[426693809,1782748241000,-997.24392002,0.0002723,2]
[426693834,1782748241000,-171.53134051,0.00027397,2]
[426693806,1782748241000,-843.9157625,0.00027086,2]
[426693814,1782748241000,-179.71008064,0.00027397,10]
[426693820,1782748241000,-179.71008064,0.00027397,10]
[426693815,1782748241000,-179.71008064,0.00027397,10]
[426693816,1782748241000,-179.71008064,0.00027397,10]
[426693811,1782748241000,-151.09934801,0.00027319,2]
[426693825,1782748241000,-300.0,0.00027397,2]
[426693833,1782748241000,-681.8752427,0.00027397,2]
[426693819,1782748241000,-179.71008064,0.00027397,10]
[426693831,1782748241000,-340.93762135,0.00027397,2]
[426693827,1782748241000,-5233.1,0.00027397,10]
[426693828,1782748241000,-155.93639075,0.00027397,2]
[426693826,1782748241000,-6279.72,0.00027397,10]
[426693832,1782748241000,-511.40643202,0.00027397,2]
[426693824,1782748241000,-1026.86,0.00027397,2]
[426693822,1782748241000,-1500.0,0.00027397,2]
[426693821,1782748241000,-396.84249185,0.00027397,2]
[426693817,1782748241000,-179.71008064,0.00027397,10]
[426693818,1782748241000,-179.71008064,0.00027397,10]
[426693823,1782748241000,-3098.76,0.00027397,2]
[426693905,1782748242000,-909.13812587,0.00027922,2]
[426693902,1782748242000,-968.46853115,0.0002792,2]
[426693903,1782748242000,-1043.25098545,0.00027922,2]
[426693898,1782748242000,-179.71008064,0.000279,10]
[426693909,1782748242000,-911.05895173,0.00027929,2]
[426693895,1782748242000,-353.09,0.00027872,2]
[426693896,1782748242000,-233.12,0.00027885,30]
[426693893,1782748242000,-591.74,0.00027872,2]
[426693894,1782748242000,-999.85,0.00027872,2]
[426693887,1782748242000,-407.0,0.0002784,2]
[426693899,1782748242000,-3500.0,0.000279,10]
[426693901,1782748242000,-235.17,0.00027916,2]
[426693917,1782748242000,-815.8,0.00027957,120]
[426693906,1782748242000,-964.04787789,0.00027922,2]
[426693907,1782748242000,-977.81732757,0.00027922,2]
[426693908,1782748242000,-1086.60615635,0.00027929,2]
[426693904,1782748242000,-961.94703963,0.00027922,2]
[426693911,1782748242000,-996.14811079,0.00027929,2]
[426693913,1782748242000,-906.91288041,0.00027929,2]
[426693914,1782748242000,-166.66,0.00027941,2]
[426693915,1782748242000,-233.12,0.00027946,7]
[426693923,1782748242000,-151.09934801,0.00027991,2]
[426693924,1782748242000,-1781.35856453,0.00027999,2]
[426693916,1782748242000,-235.17,0.00027946,7]
[426693890,1782748242000,-235.17,0.00027855,7]
[426693900,1782748242000,-233.12,0.00027916,2]
[426693897,1782748242000,-235.17,0.00027885,30]
[426693869,1782748242000,-233.12,0.00027763,7]
[426693891,1782748242000,-591.84,0.00027872,2]
[426693918,1782748242000,-852.34405337,0.00027959,2]
[426693863,1782748242000,-999.08,0.00027711,7]
[426693875,1782748242000,-588.0,0.00027818,30]
[426693876,1782748242000,-588.0,0.00027818,30]
[426693864,1782748242000,-591.74,0.00027711,7]
[426693865,1782748242000,-999.85,0.00027711,7]
[426693866,1782748242000,-353.09,0.00027711,7]
[426693868,1782748242000,-235.17,0.00027733,2]
[426693870,1782748242000,-235.17,0.00027763,7]
[426693873,1782748242000,-2600.0,0.000278,10]
[426693867,1782748242000,-233.12,0.00027733,2]
[426693871,1782748242000,-233.12,0.00027794,30]
[426693892,1782748242000,-999.08,0.00027872,2]
[426693872,1782748242000,-235.17,0.00027794,30]
[426693877,1782748242000,-588.0,0.00027818,30]
[426693880,1782748242000,-588.0,0.00027818,30]
[426693883,1782748242000,-235.17,0.00027824,2]
[426693884,1782748242000,-502.0,0.00027828,11]
[426693879,1782748242000,-588.0,0.00027818,30]
[426693886,1782748242000,-1261.0,0.0002784,2]
[426693885,1782748242000,-242.0,0.0002784,2]
[426693878,1782748242000,-588.0,0.00027818,30]
[426693882,1782748242000,-233.12,0.00027824,2]
[426693881,1782748242000,-1026.694,0.00027818,30]
[426693888,1782748242000,-204.0,0.0002784,2]
[426693889,1782748242000,-233.12,0.00027855,7]
[426693874,1782748242000,-588.0,0.00027818,30]
[426693921,1782748242000,-233.12,0.00027977,30]
[426693922,1782748242000,-235.17,0.00027977,30]
[426693920,1782748242000,-150.0,0.00027973,2]
[426693992,1782748242000,-353.1,0.00028516,30]
[426693986,1782748242000,-151.09934801,0.00028327,2]
[426693984,1782748242000,-65274.0,0.000282,2]
[426693994,1782748242000,-1859.14,0.000286,7]
[426693990,1782748242000,-1580.07,0.000284,7]
[426693996,1782748242000,-342.66032286,0.00028658,2]
[426693988,1782748242000,-353.1,0.00028355,2]
[426694013,1782748242000,-484.18003633,0.000287,2]
[426694009,1782748242000,-492.97629467,0.000287,2]
[426694011,1782748242000,-1094.57677152,0.000287,2]
[426694015,1782748242000,-1259.33353303,0.000287,2]
[426694018,1782748242000,-197.0,0.00028736,30]
[426693982,1782748242000,-999.85,0.00028194,7]
[426693999,1782748242000,-151.09934801,0.00028663,2]
[426694003,1782748242000,-353.1,0.00028677,7]
[426694007,1782748242000,-10334.58311308,0.000287,2]
[426694019,1782748242000,-158.0,0.00028736,30]
[426694005,1782748242000,-182.3488221,0.000287,2]
[426694021,1782748242000,-611.0,0.00028736,30]
[426694020,1782748242000,-154.0,0.00028736,30]
[426694022,1782748242000,-155.0,0.00028738,30]
[426694024,1782748242000,-153.0,0.00028741,30]
[426694025,1782748242000,-157.0,0.00028741,30]
[426694023,1782748242000,-159.0,0.00028738,30]
[426694026,1782748242000,-588.0,0.00028741,30]
[426694027,1782748242000,-160.0,0.00028741,30]
[426694001,1782748242000,-216.58458871,0.0002867,2]
[426693973,1782748242000,-7574.93855739,0.00028151,2]
[426694017,1782748242000,-240.0,0.00028736,30]
[426693975,1782748242000,-591.84,0.00028194,7]
[426693938,1782748242000,-591.84,0.00028033,30]
[426693980,1782748242000,-591.74,0.00028194,7]
[426693936,1782748242000,-235.17,0.00028007,2]
[426693940,1782748242000,-999.08,0.00028033,30]
[426693942,1782748242000,-999.85,0.00028033,30]
[426693944,1782748242000,-353.09,0.00028033,30]
[426693946,1782748242000,-591.74,0.00028033,30]
[426693927,1782748242000,-179.71008064,0.00028,10]
[426693948,1782748242000,-233.12,0.00028038,7]
[426693934,1782748242000,-233.12,0.00028007,2]
[426693930,1782748242000,-160.0,0.00028,30]
[426693932,1782748242000,-160.0,0.00028,30]
[426693952,1782748242000,-233.12,0.00028068,30]
[426693925,1782748242000,-179.71008064,0.00028,10]
[426693950,1782748242000,-235.17,0.00028038,7]
[426693976,1782748242000,-999.08,0.00028194,7]
[426693960,1782748242000,-235.17,0.00028099,2]
[426693966,1782748242000,-233.22,0.0002813,7]
[426693962,1782748242000,-437.37,0.000281,7]
[426693964,1782748242000,-216.58458871,0.000281,30]
[426693969,1782748242000,-235.34,0.0002813,7]
[426693978,1782748242000,-353.09,0.00028194,7]
[426693954,1782748242000,-235.17,0.00028068,30]
[426693959,1782748242000,-233.12,0.00028099,2]
[426693957,1782748242000,-1500000.0,0.00028094,120]
[426693956,1782748242000,-151.0,0.00028091,7]
[426693970,1782748242000,-15850.9632588,0.00028151,2]
[426694070,1782748243000,-1831.98,0.00029479,2]
[426694069,1782748243000,-150.0,0.00029372,2]
[426694068,1782748243000,-151.09934801,0.00029336,2]
[426694067,1782748243000,-1831.98,0.00029315,2]
[426694066,1782748243000,-437.37,0.000293,7]
[426694064,1782748243000,-333.83,0.00029221,120]
[426694058,1782748243000,-1190.80331894,0.00029194,2]
[426694062,1782748243000,-484.18003633,0.000292,2]
[426694063,1782748243000,-1259.33353303,0.000292,2]
[426694059,1782748243000,-10334.58311308,0.000292,2]
[426694071,1782748243000,-10334.58311308,0.000295,2]
[426694061,1782748243000,-1094.57677152,0.000292,2]
[426694073,1782748243000,-1094.57677152,0.000295,2]
[426694083,1782748243000,-240.0,0.00029736,30]
[426694074,1782748243000,-484.18003633,0.000295,2]
[426694072,1782748243000,-492.97629467,0.000295,2]
[426694076,1782748243000,-5528.0,0.000295,5]
[426694075,1782748243000,-1259.33353303,0.000295,2]
[426694078,1782748243000,-1580.07,0.000296,7]
[426694079,1782748243000,-1831.98,0.00029644,2]
[426694080,1782748243000,-151.09934801,0.00029672,2]
[426694088,1782748243000,-155.0,0.00029738,30]
[426694085,1782748243000,-158.0,0.00029736,30]
[426694086,1782748243000,-154.0,0.00029736,30]
[426694089,1782748243000,-159.0,0.00029738,30]
[426694060,1782748243000,-492.97629467,0.000292,2]
[426694077,1782748243000,-194.73755084,0.00029546,2]
[426694057,1782748243000,-1162.17279592,0.00029194,2]
[426694028,1782748243000,-154.0,0.00028741,30]
[426694054,1782748243000,-1124.7225242,0.00029187,2]
[426694029,1782748243000,-159.4177611,0.00028741,30]
[426694087,1782748243000,-611.0,0.00029736,30]
[426694030,1782748243000,-166.66,0.00028755,2]
[426694032,1782748243000,-502.0,0.00028812,12]
[426694031,1782748243000,-1022.81286405,0.00028803,2]
[426694033,1782748243000,-500.0,0.00028822,2]
[426694040,1782748243000,-1000.0,0.00029,2]
[426694036,1782748243000,-5528.0,0.000289,3]
[426694037,1782748243000,-1935.76522095,0.00028973,2]
[426694041,1782748243000,-239.21,0.00029,7]
[426694034,1782748243000,-353.1,0.00028838,2]
[426694035,1782748243000,-488.76706187,0.00028882,2]
[426694038,1782748243000,-179.71008064,0.00028999,10]
[426694044,1782748243000,-10334.58311308,0.00029,2]
[426694042,1782748243000,-5000.0,0.00029,2]
[426694043,1782748243000,-150.0,0.00029,2]
[426694045,1782748243000,-492.97629467,0.00029,2]
[426694046,1782748243000,-1094.57677152,0.00029,2]
[426694047,1782748243000,-484.18003633,0.00029,2]
[426694048,1782748243000,-1259.33353303,0.00029,2]
[426694050,1782748243000,-353.12,0.00029,30]
[426694051,1782748243000,-1129.87995301,0.00029185,2]
[426694049,1782748243000,-351.96844235,0.00029,2]
[426694052,1782748243000,-1217.12614969,0.00029187,2]
[426694053,1782748243000,-1122.27154624,0.00029187,2]
[426694055,1782748243000,-214.09006206,0.00029189,7]
[426694065,1782748243000,-319.55,0.00029222,120]
[426694056,1782748243000,-1137.61733733,0.00029194,2]
[426694082,1782748243000,-1859.14,0.000297,7]
[426694039,1782748243000,-151.09934801,0.00029,2]
[426694100,1782748243000,-484.18003633,0.000298,2]
[426694120,1782748243000,-249.76886183,0.000299,2]
[426694122,1782748243000,-249.76886183,0.000299,2]
[426694124,1782748243000,-249.76886183,0.000299,2]
[426694123,1782748243000,-249.76886183,0.000299,2]
[426694125,1782748243000,-249.76886183,0.000299,2]
[426694128,1782748243000,-250.0,0.00029979,7]
[426694130,1782748243000,-12499.89,0.0003,2]
[426694140,1782748243000,-151.09934801,0.00030008,2]
[426694134,1782748243000,-9999.87,0.0003,2]
[426694136,1782748243000,-2165.17275824,0.0003,10]
[426694137,1782748243000,-153.18341811,0.0003,2]
[426694139,1782748243000,-153.18341811,0.0003,2]
[426694131,1782748243000,-10638.51,0.0003,2]
[426694132,1782748243000,-22499.89,0.0003,2]
[426694129,1782748243000,-159.09,0.00029998,2]
[426694135,1782748243000,-15000.0,0.0003,2]
[426694138,1782748243000,-160.0,0.0003,120]
[426694133,1782748243000,-14351.61,0.0003,2]
[426694142,1782748243000,-319.55,0.00030044,120]
[426694144,1782748243000,-1094.57677152,0.000301,2]
[426694145,1782748243000,-1259.33353303,0.000301,2]
[426694143,1782748243000,-10334.58311308,0.000301,2]
[426694141,1782748243000,-333.83,0.00030043,120]
[426694147,1782748243000,-1000.13,0.00030136,2]
[426694146,1782748243000,-1000.13,0.00030136,2]
[426694149,1782748243000,-1000.13,0.00030136,2]
[426694084,1782748243000,-197.0,0.00029736,30]
[426694117,1782748243000,-249.76886183,0.000299,2]
[426694126,1782748243000,-249.76886183,0.000299,2]
[426694148,1782748243000,-1000.13,0.00030136,2]
[426694115,1782748243000,-249.76886183,0.000299,2]
[426694121,1782748243000,-249.76886183,0.000299,2]
[426694091,1782748243000,-157.0,0.00029741,30]
[426694101,1782748243000,-1259.33353303,0.000298,2]
[426694094,1782748243000,-154.0,0.00029741,30]
[426694093,1782748243000,-160.0,0.00029741,30]
[426694102,1782748243000,-1831.98,0.00029808,2]
[426694092,1782748243000,-588.0,0.00029741,30]
[426694096,1782748243000,-10334.58311308,0.000298,2]
[426694097,1782748243000,-492.97629467,0.000298,2]
[426694099,1782748243000,-1094.57677152,0.000298,2]
[426694095,1782748243000,-502.0,0.00029797,13]
[426694106,1782748243000,-179.71008064,0.000299,10]
[426694103,1782748243000,-179.71008064,0.000299,10]
[426694090,1782748243000,-153.0,0.00029741,30]
[426694113,1782748243000,-249.76886183,0.000299,2]
[426694111,1782748243000,-249.76886183,0.000299,2]
[426694118,1782748243000,-249.76886183,0.000299,2]
[426694116,1782748243000,-249.76886183,0.000299,2]
[426694107,1782748243000,-179.71008064,0.000299,10]
[426694112,1782748243000,-249.76886183,0.000299,2]
[426694127,1782748243000,-1831.98,0.00029973,2]
[426694114,1782748243000,-249.76886183,0.000299,2]